[Event "Kragero Resort International 2022"]
[Site "Kragero"]
[Date "2022.02.26"]
[Round "7.10"]
[White "Gharibyan, Mamikon"]
[Black "Reimanis, Ritvars"]
[Result "1-0"]
[ECO "D37"]
[WhiteElo "2479"]
[BlackElo "2397"]
[Annotator "RC"]
[PlyCount "95"]
[EventDate "2022.02.23"]
[EventType "swiss"]
[EventCountry "NOR"]
[SourceTitle "playchess.com"]
[Source "ChessBase"]
[SourceQuality "1"]
[TimeControl "5400+30"]

1. d4 {[%emt 0:00:03]} Nf6 {[%emt 0:00:05]} 2. c4 {[%emt 0:00:05]} e6 {[%emt 0:00:03]} 3. Nf3 {[%emt 0:00:05]} d5 {[%emt 0:00:11]} 4. Nc3 {[%emt 0:00:10]} Be7 {[%emt 0:00:06]} 5. Bf4 {[%emt 0:00:24]} O-O {[%emt 0:00:13]} 6. e3 {[%emt 0:00:05]} c5 {[%emt 0:00:32]} 7. a3 {[%emt 0:01:58]} cxd4 {[%emt 0:02:05]} 8. exd4 {[%emt 0:01:05]} dxc4 {[%emt 0:03:28]} 9. Bxc4 {[%emt 0:00:10]} Nbd7 {[%emt 0:00:24]} 10. O-O {[%emt 0:00:50]} Nb6 {[%emt 0:00:10]} 11. Bd3 {[%emt 0:05:41]} Nbd5 {[%emt 0:09:26]} 12. Nxd5 {[%emt 0:02:50]} Qxd5 {[%emt 0:02:28]} 13. Ne5 {[%emt 0:11:50]} Bd7 {[%emt 0:04:13]} 14. Re1 {[%emt 0:02:59]} Bb5 {[%emt 0:04:05]} 15. Bc2 {[%emt 0:03:52]} Rad8 {[%emt 0:03:18]} 16. Be3 {[%emt 0:03:41]} Bc6 {[%emt 0:03:56]} 17. f3 {[%emt 0:03:34]} Qd6 {[%emt 0:01:10]} 18. Qd3 {[%emt 0:03:32]} g6 {[%emt 0:09:28]} 19. Rad1 {[%emt 0:01:58]} Nd7 {[%emt 0:11:44]} 20. Nxc6 {[%emt 0:07:26]} bxc6 {[%emt 0:03:01]} 21. Qa6 {[%emt 0:00:57]} Qc7 {[%emt 0:06:59]} 22. Bf2 {[%emt 0:04:16]} Bd6 {[%emt 0:00:45]} 23. g3 {[%emt 0:00:53]} Nb8 {[%emt 0:07:10]} 24. Qa4 {[%emt 0:02:42]} Be7 {[%emt 0:00:49]} 25. Be4 {[%emt 0:03:21]} Bf6 {[%emt 0:03:29]} 26. Rd3 {[%emt 0:11:03]} Bg7 {[%emt 0:01:09]} 27. f4 {[%emt 0:05:14]} Rd6 {[%emt 0:00:27]} 28. Qc4 {[%emt 0:01:56]} Rfd8 {[%emt 0:00:45]} 29. Red1 {[%emt 0:02:09]} Nd7 {[%emt 0:01:29]} 30. b4 {[%emt 0:04:08]} Nf6 {[%emt 0:00:50]} 31. Bf3 {[%emt 0:00:13]} Qd7 {[%emt 0:00:01]} 32. Kg2 {[%emt 0:01:23]} Nd5 {[%emt 0:00:16]} 33. Qc5 {[%emt 0:01:21]} Bf6 {[%emt 0:00:53]} 34. Rc1 {[%emt 0:01:05]} Qb7 {[%emt 0:02:50]} 35. Bxd5 {[%emt 0:01:24]} exd5 {[%emt 0:01:33]} 36. f5 {[%emt 0:00:55]} Be7 {[%emt 0:01:35]} 37. Rf3 {[%emt 0:00:55]} Qd7 {[%emt 0:04:50]} 38. Qc2 {[%emt 0:00:05]} Bg5 {[%emt 0:05:17]} 39. Re1 {[%emt 0:01:24]} Re8 {[%emt 0:01:35]} 40. Re5 {[%emt 0:01:48]} Bf6 {[%emt 0:01:42]} 41. Rxe8+ {[%emt 0:01:13]} Qxe8 {[%emt 0:00:01]} 42. Qc5 {[%emt 0:00:44]} Qd7 {[%emt 0:01:19]} 43. g4 {[%emt 0:00:49]} gxf5 {[%emt 0:00:05]} 44. gxf5 {[%emt 0:00:28]} Be7 {[%emt 0:02:29]} 45. Qc1 {[%emt 0:00:30]} Rf6 {[%emt 0:02:54]} 46. Qf4 {[%emt 0:00:15]} Rd6 {[%emt 0:01:29]} 47. Rg3+ {[%emt 0:01:46]} Kf8 {[%emt 0:00:40]} 48. Qg4 {[%emt 0:00:02]} 1-0

[Event "Kragero Resort International 2022"]
[Site "Kragero"]
[Date "2022.02.26"]
[Round "7.12"]
[White "Sagafos, Magne"]
[Black "Kvaloy, Aksel Bu"]
[Result "1/2-1/2"]
[ECO "D02"]
[WhiteElo "2386"]
[BlackElo "2280"]
[Annotator "NA"]
[PlyCount "69"]
[EventDate "2022.02.23"]
[EventType "swiss"]
[EventCountry "NOR"]
[SourceTitle "playchess.com"]
[Source "ChessBase"]
[SourceQuality "1"]
[TimeControl "5400+30"]

1. d4 {[%emt 0:00:15]} Nf6 {[%emt 0:00:17]} 2. Nf3 {[%emt 0:00:18]} e6 {[%emt 0:00:37]} 3. Bf4 {[%emt 0:00:14]} d5 {[%emt 0:01:05]} 4. e3 {[%emt 0:00:09]} Bd6 {[%emt 0:00:34]} 5. Bg3 {[%emt 0:00:38]} O-O {[%emt 0:00:42]} 6. Nbd2 {[%emt 0:00:25]} c5 {[%emt 0:01:22]} 7. c3 {[%emt 0:00:26]} Qc7 {[%emt 0:00:41]} 8. Bd3 {[%emt 0:16:24]} Nbd7 {[%emt 0:03:04]} 9. Bh4 {[%emt 0:13:03]} Re8 {[%emt 0:30:21]} 10. O-O $11 {[%emt 0:09:32]} Be7 {[%emt 0:06:23]} 11. Bg3 {[%emt 0:04:06]} Bd6 {[%emt 0:01:12]} 12. Ne5 {[%emt 0:00:12]} Nxe5 {[%emt 0:02:35]} 13. dxe5 {[%emt 0:00:03]} Bxe5 {[%emt 0:00:21]} 14. f4 {[%emt 0:00:07]} Bd6 {[%emt 0:00:40]} 15. e4 {[%emt 0:00:47]} dxe4 {[%emt 0:13:52]} 16. Nxe4 {[%emt 0:00:24]} Nxe4 {[%emt 0:02:42]} 17. Bxe4 {[%emt 0:00:05]} Bd7 {[%emt 0:02:54]} 18. Bxh7+ {[%emt 0:14:11]} Kxh7 {[%emt 0:01:47]} 19. Qd3+ {[%emt 0:00:04]} Kg8 {[%emt 0:02:01]} 20. Rad1 {[%emt 0:04:43]} Rad8 {[%emt 0:05:03]} 21. Qxd6 {[%emt 0:00:06]} Qxd6 {[%emt 0:00:08]} 22. Rxd6 {[%emt 0:00:06]} Ba4 {[%emt 0:00:22]} 23. f5 {[%emt 0:10:56]} exf5 {[%emt 0:02:19]} 24. Rxf5 {[%emt 0:00:08]} Bc6 {[%emt 0:08:28]} 25. Re5 {[%emt 0:02:46]} f6 {[%emt 0:04:04]} 26. Rxe8+ {[%emt 0:00:30]} Rxe8 {[%emt 0:00:01]} 27. Kf2 {[%emt 0:01:16]} Kf7 {[%emt 0:00:34]} 28. Rd2 {[%emt 0:01:14]} a6 {[%emt 0:02:18]} 29. c4 {[%emt 0:02:55]} Re4 {[%emt 0:02:44]} 30. b3 {[%emt 0:00:50]} b5 {[%emt 0:00:36]} 31. Rd6 {[%emt 0:01:29]} Re6 {[%emt 0:00:12]} 32. Bf4 {[%emt 0:08:43]} bxc4 {[%emt 0:01:23]} 33. bxc4 {[%emt 0:02:24]} Rxd6 {[%emt 0:01:17]} 34. Bxd6 {[%emt 0:00:05]} Be4 {[%emt 0:00:06]} 35. Bxc5 {[%emt 0:02:16]} 1/2-1/2

[Event "Kragero Resort International 2022"]
[Site "Kragero"]
[Date "2022.02.26"]
[Round "7.15"]
[White "Mikalsen, Erlend"]
[Black "Nikolic, Vladan"]
[Result "0-1"]
[ECO "C77"]
[WhiteElo "2368"]
[BlackElo "2218"]
[Annotator "ChessBase"]
[PlyCount "66"]
[EventDate "2022.02.23"]
[EventType "swiss"]
[EventCountry "NOR"]
[SourceTitle "playchess.com"]
[Source "ChessBase"]
[SourceQuality "1"]
[TimeControl "5400+30"]

1. e4 {[%emt 0:01:34]} e5 {[%emt 0:00:04]} 2. Nf3 {[%emt 0:00:22]} Nc6 {[%emt 0:00:07]} 3. Bb5 {[%emt 0:00:05]} a6 {[%emt 0:00:05]} 4. Ba4 {[%emt 0:00:02]} Nf6 {[%emt 0:00:07]} 5. d3 {[%emt 0:00:05]} b5 {[%emt 0:00:56]} 6. Bb3 {[%emt 0:00:04]} Bc5 {[%emt 0:00:06]} 7. Nc3 {[%emt 0:01:11]} d6 {[%emt 0:07:27]} 8. Nd5 {[%emt 0:03:01]} h6 {[%emt 0:01:03]} 9. c3 {[%emt 0:00:36]} Ba7 {[%emt 0:09:04]} 10. Nxf6+ {[%emt 0:07:08]} Qxf6 {[%emt 0:00:26]} 11. Bd5 {[%emt 0:00:03]} Bd7 {[%emt 0:02:15]} 12. O-O {[%emt 0:01:02]} Rb8 {[%emt 0:06:16]} 13. Be3 {[%emt 0:00:56]} Bb6 {[%emt 0:00:55]} 14. a4 {[%emt 0:06:27]} O-O {[%emt 0:04:08]} 15. a5 {[%emt 0:02:35]} Bxe3 {[%emt 0:02:39]} 16. fxe3 {[%emt 0:00:05]} Ne7 {[%emt 0:04:00]} 17. Ba2 {[%emt 0:05:32]} Ng6 {[%emt 0:00:55]} 18. d4 {[%emt 0:08:39]} Qe7 {[%emt 0:02:28]} 19. Qd3 {[%emt 0:01:59]} Be6 {[%emt 0:11:48]} 20. d5 {[%emt 0:01:08]} Bd7 {[%emt 0:00:48]} 21. Ne1 {[%emt 0:00:04]} Qg5 {[%emt 0:02:51]} 22. Nc2 {[%emt 0:01:25]} f5 {[%emt 0:04:18]} 23. Nb4 {[%emt 0:05:19]} fxe4 {[%emt 0:02:41]} 24. Qxe4 {[%emt 0:00:16]} Bf5 {[%emt 0:01:20]} 25. Rxf5 {[%emt 0:00:05]} Rxf5 {[%emt 0:00:06]} 26. Nxa6 {[%emt 0:00:27]} Rbf8 {[%emt 0:10:58]} 27. Nxc7 {[%emt 0:02:51]} Qf6 {[%emt 0:00:38]} 28. h3 {[%emt 0:00:51]} Nh4 {[%emt 0:00:46]} 29. Ne6 {[%emt 0:11:17]} Rf1+ {[%emt 0:01:23]} 30. Rxf1 {[%emt 0:00:10]} Qxf1+ {[%emt 0:00:06]} 31. Kh2 {[%emt 0:00:01]} Rf2 {[%emt 0:01:00]} 32. Nf4 {[%emt 0:00:07]} Nf3+ {[%emt 0:00:54]} 33. Qxf3 {[%emt 0:00:44]} Rxf3 {[%emt 0:00:08]} 0-1

[Event "Kragero Resort International 2022"]
[Site "Kragero"]
[Date "2022.02.26"]
[Round "7.16"]
[White "Vestby-Ellingsen, Mads"]
[Black "Blokhin, Sofia"]
[Result "1-0"]
[ECO "A92"]
[WhiteElo "2368"]
[BlackElo "2059"]
[Annotator "NA"]
[PlyCount "95"]
[EventDate "2022.02.23"]
[EventType "swiss"]
[EventCountry "NOR"]
[SourceTitle "playchess.com"]
[Source "ChessBase"]
[SourceQuality "1"]
[TimeControl "5400+30"]

1. d4 {[%emt 0:00:34]} f5 {[%emt 0:00:08]} 2. g3 {[%emt 0:00:32]} Nf6 {[%emt 0:00:19]} 3. Bg2 {[%emt 0:00:15]} d5 {[%emt 0:00:18]} 4. Nf3 {[%emt 0:00:58]} e6 {[%emt 0:00:21]} 5. O-O {[%emt 0:00:22]} Be7 {[%emt 0:00:21]} 6. c4 {[%emt 0:00:20]} O-O {[%emt 0:00:28]} 7. Nbd2 {[%emt 0:00:21]} c6 {[%emt 0:01:20]} 8. Ne5 {[%emt 0:01:02]} Nbd7 {[%emt 0:03:49]} 9. Nd3 {[%emt 0:00:42]} Bd6 {[%emt 0:06:04]} 10. Qc2 {[%emt 0:03:25]} Qe8 {[%emt 0:06:07]} 11. Nf3 {[%emt 0:02:53]} dxc4 {[%emt 0:07:01]} 12. Qxc4 {[%emt 0:00:40]} Nb6 {[%emt 0:01:12]} 13. Qb3 {[%emt 0:04:35]} Nbd5 {[%emt 0:01:21]} 14. Nfe5 {[%emt 0:01:33]} Nd7 {[%emt 0:12:17]} (14... b6 $14) 15. Bd2 {[%emt 0:05:36]} Nxe5 {[%emt 0:03:23]} 16. dxe5 {[%emt 0:05:24]} Bc7 {[%emt 0:01:33]} 17. Rac1 {[%emt 0:06:56]} Bd8 {[%emt 0:05:30]} 18. e4 {[%emt 0:04:47]} fxe4 {[%emt 0:01:13]} 19. Bxe4 {[%emt 0:00:11]} Qh5 {[%emt 0:03:17]} 20. Nf4 {[%emt 0:03:34]} Qxe5 {[%emt 0:05:00]} 21. Rce1 {[%emt 0:13:43]} Qf6 {[%emt 0:05:44]} 22. Qc2 {[%emt 0:03:05]} g6 $11 {[%emt 0:01:23]} 23. Nd3 {[%emt 0:05:18]} Bb6 {[%emt 0:06:11]} 24. h4 {[%emt 0:01:07]} Qg7 {[%emt 0:03:38]} 25. Bg2 {[%emt 0:01:35]} Qc7 {[%emt 0:03:58]} 26. Kh2 {[%emt 0:09:35]} Rf5 {[%emt 0:04:59]} 27. f4 {[%emt 0:03:39]} Bd7 {[%emt 0:01:35]} 28. Bh3 {[%emt 0:01:05]} Rff8 {[%emt 0:01:59]} 29. Ne5 {[%emt 0:02:45]} Rae8 {[%emt 0:02:25]} 30. Nxg6 {[%emt 0:02:47]} Rf7 {[%emt 0:00:32]} 31. Ne5 {[%emt 0:00:29]} Rg7 {[%emt 0:00:11]} 32. h5 {[%emt 0:05:01]} h6 {[%emt 0:00:56]} 33. Ng4 {[%emt 0:02:02]} Bd4 {[%emt 0:01:44]} 34. f5 {[%emt 0:03:53]} exf5 {[%emt 0:01:14]} 35. Rxe8+ {[%emt 0:00:06]} Bxe8 {[%emt 0:00:04]} 36. Qxf5 {[%emt 0:02:08]} Nf6 {[%emt 0:03:42]} 37. Nxf6+ {[%emt 0:04:54]} Bxf6 {[%emt 0:00:11]} 38. Bf4 {[%emt 0:00:10]} Qe7 {[%emt 0:00:41]} 39. Bxh6 {[%emt 0:00:39]} Rf7 {[%emt 0:01:11]} 40. Qe6 {[%emt 0:01:07]} Qd8 {[%emt 0:00:46]} 41. Rxf6 {[%emt 0:00:28]} Qxf6 {[%emt 0:00:09]} 42. Qxe8+ {[%emt 0:00:07]} Kh7 {[%emt 0:00:06]} 43. Bf4 {[%emt 0:01:01]} Qxb2+ {[%emt 0:01:53]} 44. Bg2 {[%emt 0:00:05]} Qxa2 {[%emt 0:00:33]} 45. Be5 {[%emt 0:00:52]} Kh6 {[%emt 0:00:12]} 46. Qg8 {[%emt 0:00:28]} Kxh5 {[%emt 0:03:00]} 47. g4+ {[%emt 0:00:10]} Kh6 {[%emt 0:00:10]} 48. Qh8+ {[%emt 0:00:21]} 1-0

[Event "Kragero Resort International 2022"]
[Site "Kragero"]
[Date "2022.02.26"]
[Round "7.17"]
[White "Ingebretsen, Jens E"]
[Black "Stanford, Maxim Barth"]
[Result "1-0"]
[ECO "A20"]
[WhiteElo "2316"]
[BlackElo "2339"]
[Annotator "NA"]
[PlyCount "99"]
[EventDate "2022.02.23"]
[EventType "swiss"]
[EventCountry "NOR"]
[SourceTitle "playchess.com"]
[Source "ChessBase"]
[SourceQuality "1"]
[TimeControl "5400+30"]

1. c4 {[%emt 0:00:02]} e5 {[%emt 0:00:26]} 2. g3 {[%emt 0:00:48]} Nf6 {[%emt 0:00:39]} 3. Bg2 {[%emt 0:00:06]} c6 {[%emt 0:01:41]} 4. d4 {[%emt 0:00:53]} e4 {[%emt 0:03:32]} 5. Nc3 {[%emt 0:01:41]} Bb4 {[%emt 0:01:38]} 6. Bd2 {[%emt 0:02:24]} Qe7 {[%emt 0:03:27]} 7. e3 {[%emt 0:03:25]} h5 {[%emt 0:04:21]} 8. h3 {[%emt 0:02:54]} Bxc3 {[%emt 0:06:09]} 9. Bxc3 {[%emt 0:00:32]} d6 {[%emt 0:00:08]} 10. Ne2 {[%emt 0:01:06]} Bf5 {[%emt 0:00:35]} 11. a4 {[%emt 0:07:33]} Nbd7 {[%emt 0:10:15]} (11... d5 $11 {deserves consideration.}) 12. a5 {[%emt 0:01:02]} a6 {[%emt 0:02:25]} 13. Ra4 {[%emt 0:04:51]} Rb8 {[%emt 0:05:39]} 14. Qb3 {[%emt 0:03:42]} (14. Nf4 $14) 14... c5 {[%emt 0:03:42]} ({Black should try} 14... Nf8 $11) 15. Qa3 {[%emt 0:04:14]} O-O $11 {[%emt 0:01:59]} 16. O-O {[%emt 0:00:32]} Rfc8 {[%emt 0:04:56]} 17. b3 {[%emt 0:01:45]} Rc6 {[%emt 0:06:41]} 18. Qa1 {[%emt 0:04:28]} Bh7 {[%emt 0:04:41]} 19. Rd1 {[%emt 0:05:57]} cxd4 {[%emt 0:05:53]} 20. Nxd4 {[%emt 0:02:16]} Rcc8 {[%emt 0:01:23]} 21. Ne2 {[%emt 0:05:31]} Ne8 {[%emt 0:05:43]} 22. Nf4 {[%emt 0:00:54]} Ndf6 {[%emt 0:01:24]} 23. Bd4 {[%emt 0:07:00]} Bf5 {[%emt 0:02:21]} 24. Ra2 {[%emt 0:01:52]} Rc6 {[%emt 0:02:26]} 25. Rad2 {[%emt 0:00:34]} Rd8 {[%emt 0:01:02]} 26. Bf1 {[%emt 0:04:23]} Rdc8 {[%emt 0:02:22]} 27. Be2 {[%emt 0:02:23]} h4 {[%emt 0:03:00]} 28. Kh2 {[%emt 0:02:09]} g5 {[%emt 0:02:16]} 29. Nd5 {[%emt 0:05:31]} hxg3+ {[%emt 0:00:43]} 30. fxg3 {[%emt 0:00:10]} Nxd5 {[%emt 0:00:22]} 31. cxd5 {[%emt 0:00:06]} Rc2 {[%emt 0:00:37]} 32. Bc4 {[%emt 0:00:35]} Rxd2+ {[%emt 0:04:25]} 33. Rxd2 {[%emt 0:00:01]} Bd7 {[%emt 0:00:35]} 34. Qd1 {[%emt 0:02:05]} f6 {[%emt 0:01:06]} 35. Rf2 {[%emt 0:01:22]} Qh7 {[%emt 0:00:58]} 36. Qf1 {[%emt 0:00:40]} f5 {[%emt 0:03:01]} 37. g4 {[%emt 0:04:24]} Ng7 {[%emt 0:00:03]} 38. gxf5 {[%emt 0:03:38]} Nxf5 {[%emt 0:00:36]} 39. Rg2 {[%emt 0:00:07]} Kf7 {[%emt 0:03:06]} 40. Rg4 {[%emt 0:04:28]} Rg8 {[%emt 0:01:02]} 41. Be2 {[%emt 0:00:46]} Kg6 {[%emt 0:01:35]} 42. h4 {[%emt 0:03:07]} Kh6 {[%emt 0:01:54]} 43. Bf6 {[%emt 0:03:36]} Qf7 {[%emt 0:00:38]} 44. Bxg5+ {[%emt 0:02:49]} Kh7 {[%emt 0:00:03]} 45. Rf4 {[%emt 0:00:25]} Rc8 {[%emt 0:00:26]} 46. Bg4 {[%emt 0:00:45]} Rf8 {[%emt 0:00:24]} 47. Qc4 {[%emt 0:01:30]} Qg6 {[%emt 0:01:04]} 48. Qxe4 {[%emt 0:00:38]} Rf7 {[%emt 0:00:09]} 49. Qf3 {[%emt 0:00:25]} Kg7 {[%emt 0:00:37]} 50. Bh5 {[%emt 0:00:28]} 1-0

[Event "Kragero Resort International 2022"]
[Site "Kragero"]
[Date "2022.02.26"]
[Round "7.18"]
[White "Sjoberg, Isak"]
[Black "Thorhallsson, Simon"]
[Result "0-1"]
[ECO "B87"]
[WhiteElo "2322"]
[BlackElo "2245"]
[Annotator "NA"]
[PlyCount "94"]
[EventDate "2022.02.23"]
[EventType "swiss"]
[EventCountry "NOR"]
[SourceTitle "playchess.com"]
[Source "ChessBase"]
[SourceQuality "1"]
[TimeControl "5400+30"]

1. e4 {[%emt 0:00:03]} c5 {[%emt 0:00:06]} 2. Nf3 {[%emt 0:00:06]} d6 {[%emt 0:00:05]} 3. d4 {[%emt 0:01:52]} cxd4 {[%emt 0:00:06]} 4. Nxd4 {[%emt 0:00:05]} Nf6 {[%emt 0:00:05]} 5. Nc3 {[%emt 0:00:04]} a6 {[%emt 0:00:13]} 6. Bc4 {[%emt 0:00:47]} e6 {[%emt 0:00:10]} 7. Bb3 {[%emt 0:00:04]} b5 {[%emt 0:01:04]} 8. O-O {[%emt 0:04:09]} Be7 {[%emt 0:01:21]} 9. Qf3 {[%emt 0:00:51]} Qb6 {[%emt 0:02:56]} 10. Be3 {[%emt 0:05:00]} Qb7 {[%emt 0:01:46]} 11. Qg3 {[%emt 0:07:33]} Nbd7 {[%emt 0:12:48]} (11... O-O $11) 12. f3 {[%emt 0:15:03]} O-O {[%emt 0:07:59] [#]} (12... Nh5 $11 {feels stronger.} 13. Qh3 Nhf6) 13. Kh1 {[%emt 0:05:18]} ({White should play} 13. Nd5 $1 $14 Nxd5 14. exd5) 13... Nc5 {[%emt 0:03:15]} 14. Rad1 {[%emt 0:05:44]} (14. a3 $11 {feels stronger.}) 14... Bd7 $15 {[%emt 0:01:46]} 15. Bh6 {[%emt 0:08:29]} Ne8 {[%emt 0:01:37]} 16. Bg5 {[%emt 0:07:12]} Bxg5 {[%emt 0:04:18]} 17. Qxg5 {[%emt 0:00:05]} a5 {[%emt 0:06:03]} 18. a3 {[%emt 0:04:19]} a4 {[%emt 0:02:41]} 19. Ba2 {[%emt 0:03:06]} b4 {[%emt 0:02:11]} 20. axb4 {[%emt 0:00:48]} Qxb4 {[%emt 0:00:08]} 21. Qd2 {[%emt 0:00:55]} Rc8 {[%emt 0:10:27]} 22. Rb1 {[%emt 0:04:29]} Nc7 {[%emt 0:01:36]} 23. Rfd1 {[%emt 0:00:43]} Rfd8 {[%emt 0:03:02]} 24. Nde2 {[%emt 0:02:31]} Be8 {[%emt 0:02:31]} 25. Qf4 {[%emt 0:01:47]} Nb5 {[%emt 0:05:15]} 26. h4 {[%emt 0:02:11]} Nxc3 {[%emt 0:01:54]} 27. Nxc3 {[%emt 0:00:44]} a3 {[%emt 0:03:58]} 28. Qc1 {[%emt 0:05:23]} Rb8 {[%emt 0:01:17]} 29. Bb3 {[%emt 0:01:45]} Nxb3 {[%emt 0:03:08]} 30. cxb3 {[%emt 0:00:05]} Rdc8 {[%emt 0:01:25]} 31. Qd2 {[%emt 0:02:31]} axb2 {[%emt 0:01:18]} 32. Ne2 {[%emt 0:02:11]} Qxb3 {[%emt 0:00:24]} 33. Qxd6 {[%emt 0:00:32]} Qc2 {[%emt 0:03:58]} 34. Nd4 {[%emt 0:04:15]} Qf2 {[%emt 0:00:51]} 35. Qf4 {[%emt 0:00:07]} h6 {[%emt 0:01:19]} 36. Kh2 {[%emt 0:01:15]} Rb4 {[%emt 0:10:59]} 37. Rd2 {[%emt 0:01:45]} e5 {[%emt 0:00:14]} 38. Rxf2 {[%emt 0:00:34]} exf4 {[%emt 0:00:06]} 39. Nf5 {[%emt 0:01:58]} Rcb8 {[%emt 0:00:06]} 40. Ne7+ {[%emt 0:00:10]} Kf8 {[%emt 0:00:24]} 41. Nd5 {[%emt 0:00:02]} Rb3 {[%emt 0:00:50]} 42. Nxf4 {[%emt 0:00:17]} R8b4 {[%emt 0:03:44]} 43. Rd2 {[%emt 0:01:03]} Bc6 {[%emt 0:00:56]} 44. Ne2 {[%emt 0:01:37]} Bb5 {[%emt 0:01:08]} 45. Nf4 {[%emt 0:00:38]} Bc4 {[%emt 0:00:53]} 46. h5 {[%emt 0:01:06]} Rb8 {[%emt 0:00:24]} 47. Ne2 {[%emt 0:02:11]} Bd3 {[%emt 0:00:14]} 0-1

[Event "Kragero Resort International 2022"]
[Site "Kragero"]
[Date "2022.02.26"]
[Round "7.19"]
[White "Abdrlauf, Elham"]
[Black "Gjestemoen-VonHirsch, Andre"]
[Result "1-0"]
[ECO "B25"]
[WhiteElo "2343"]
[BlackElo "2243"]
[Annotator "NA"]
[PlyCount "85"]
[EventDate "2022.02.23"]
[EventType "swiss"]
[EventCountry "NOR"]
[SourceTitle "playchess.com"]
[Source "ChessBase"]
[SourceQuality "1"]
[TimeControl "5400+30"]

1. e4 {[%emt 0:00:07]} c5 {[%emt 0:00:05]} 2. Nc3 {[%emt 0:00:05]} Nc6 {[%emt 0:01:04]} 3. Nf3 {[%emt 0:00:07]} g6 {[%emt 0:00:04]} 4. g3 {[%emt 0:02:40]} Bg7 {[%emt 0:00:06]} 5. Bg2 {[%emt 0:00:08]} d6 {[%emt 0:00:36]} 6. O-O {[%emt 0:00:15]} e5 {[%emt 0:02:39]} 7. d3 {[%emt 0:05:10]} Nge7 {[%emt 0:00:10]} 8. Nd2 {[%emt 0:03:41]} Be6 {[%emt 0:06:11]} 9. Nc4 {[%emt 0:03:05]} d5 {[%emt 0:08:19]} 10. exd5 {[%emt 0:02:29]} Nxd5 {[%emt 0:00:09]} 11. Ne4 {[%emt 0:01:21]} Qe7 {[%emt 0:05:29]} (11... b6 $1 $11 {remains equal.}) 12. Ncd6+ {[%emt 0:18:16]} Kf8 {[%emt 0:02:18]} 13. c4 {[%emt 0:00:04]} Nf6 $16 {[%emt 0:11:54]} 14. Bg5 {[%emt 0:02:35]} h6 {[%emt 0:06:23]} 15. Bxf6 {[%emt 0:00:18]} Bxf6 {[%emt 0:00:11]} 16. Nxb7 {[%emt 0:00:24]} Qxb7 {[%emt 0:02:10]} 17. Nxc5 {[%emt 0:04:36]} Qc8 {[%emt 0:15:28]} 18. Qf3 {[%emt 0:00:20]} Ke7 {[%emt 0:00:03]} 19. Nxe6 {[%emt 0:00:36]} Qxe6 {[%emt 0:00:04]} 20. Qxc6 {[%emt 0:00:05]} Qxc6 {[%emt 0:00:04]} 21. Bxc6 {[%emt 0:00:04]} Rab8 {[%emt 0:00:11]} 22. b3 {[%emt 0:03:05]} Kd6 {[%emt 0:02:28]} 23. Bd5 {[%emt 0:00:15]} Rhf8 {[%emt 0:00:13]} 24. Rae1 {[%emt 0:02:12]} Bd8 {[%emt 0:00:27]} 25. f4 {[%emt 0:00:45]} Bb6+ {[%emt 0:00:17]} 26. Kg2 {[%emt 0:00:07]} f6 {[%emt 0:01:20]} 27. fxe5+ {[%emt 0:02:11]} fxe5 {[%emt 0:00:05]} 28. b4 {[%emt 0:00:03]} a5 {[%emt 0:10:37]} 29. a3 {[%emt 0:00:57]} axb4 {[%emt 0:01:02]} 30. axb4 {[%emt 0:00:04]} Bd4 {[%emt 0:00:03]} 31. Rxf8 {[%emt 0:10:49]} Rxf8 {[%emt 0:00:03]} 32. Bf3 {[%emt 0:00:05]} Rb8 {[%emt 0:00:50]} 33. Rb1 {[%emt 0:00:09]} Ke7 {[%emt 0:04:38]} 34. Be4 {[%emt 0:01:24]} g5 {[%emt 0:00:30]} 35. Kh3 {[%emt 0:04:15]} Bc5 {[%emt 0:04:42]} 36. b5 {[%emt 0:00:12]} Rb6 {[%emt 0:01:39]} 37. Bc6 {[%emt 0:00:40]} Rb8 {[%emt 0:01:44]} 38. Kg4 {[%emt 0:02:11]} Bd4 {[%emt 0:00:21]} 39. Kh5 {[%emt 0:02:01]} Kf6 {[%emt 0:01:07]} 40. Rf1+ {[%emt 0:00:10]} Kg7 {[%emt 0:00:05]} 41. Bd5 {[%emt 0:00:07]} Rb6 {[%emt 0:02:49]} 42. Rf7+ {[%emt 0:00:22]} Kh8 {[%emt 0:00:03]} 43. Bc6 {[%emt 0:00:44]} 1-0